[Event "*** Titled Tuesday Blitz AM"]
[Site "Chess.com"]
[Date "2020.01.07"]
[Round "1"]
[White "Vugar_Manafov"]
[Black "OparinGrigoriy"]
[Result "0-1"]
[WhiteElo "2523"]
[BlackElo "3036"]
[TimeControl "180+2"]
[EndTime "9:10:17 PST"]
[Termination "OparinGrigoriy won by resignation"]

1. Nf3 {[%clk 0:02:57.6]} 1... Nf6 {[%clk 0:03:00.9]} 2. g3 {[%clk 0:02:58.5]}
2... d5 {[%clk 0:03:00.5]} 3. Bg2 {[%clk 0:02:57.5]} 3... c5 {[%clk 0:03:01.9]}
4. O-O {[%clk 0:02:57.1]} 4... g6 {[%clk 0:03:03.4]} 5. d3 {[%clk 0:02:56.2]}
5... Bg7 {[%clk 0:03:04.3]} 6. Nc3 {[%clk 0:02:56.6]} 6... Nc6 {[%clk
0:03:04.4]} 7. e4 {[%clk 0:02:57.2]} 7... O-O {[%clk 0:03:05.8]} 8. Re1 {[%clk
0:02:56.4]} 8... dxe4 {[%clk 0:02:59.5]} 9. dxe4 {[%clk 0:02:56.3]} 9... Qxd1
{[%clk 0:03:00.8]} 10. Rxd1 {[%clk 0:02:58.2]} 10... Bg4 {[%clk 0:03:00.3]} 11.
Be3 {[%clk 0:02:58.6]} 11... b6 {[%clk 0:02:53.8]} 12. h3 {[%clk 0:02:58.1]}
12... Bxf3 {[%clk 0:02:53.6]} 13. Bxf3 {[%clk 0:03:00]} 13... Rad8 {[%clk
0:02:55.2]} 14. Rxd8 {[%clk 0:02:55.7]} 14... Rxd8 {[%clk 0:02:55.9]} 15. Rd1
{[%clk 0:02:49.6]} 15... Rxd1+ {[%clk 0:02:45.8]} 16. Bxd1 {[%clk 0:02:51.5]}
16... Nd7 {[%clk 0:02:44.1]} 17. Bd2 {[%clk 0:02:42.1]} 17... h5 {[%clk
0:02:36.6]} 18. f4 {[%clk 0:02:36.5]} 18... Bd4+ {[%clk 0:02:20.1]} 19. Kg2
{[%clk 0:02:35.4]} 19... f6 {[%clk 0:02:20.9]} 20. a3 {[%clk 0:02:25.8]} 20...
Kf7 {[%clk 0:02:18.7]} 21. b3 {[%clk 0:02:25.2]} 21... e6 {[%clk 0:02:15.1]} 22.
Ne2 {[%clk 0:02:18.2]} 22... Bb2 {[%clk 0:02:15.7]} 23. a4 {[%clk 0:02:07.5]}
23... Nb4 {[%clk 0:02:13.4]} 24. c3 {[%clk 0:02:02.5]} 24... Nc6 {[%clk
0:02:00.9]} 25. Bc2 {[%clk 0:02:02.5]} 25... e5 {[%clk 0:01:58.8]} 26. Bd3
{[%clk 0:01:57]} 26... Ke7 {[%clk 0:01:49.3]} 27. Kf2 {[%clk 0:01:48.6]} 27...
Na5 {[%clk 0:01:43]} 28. b4 {[%clk 0:01:02]} 28... Nc6 {[%clk 0:01:42.2]} 29.
Ke1 {[%clk 0:00:44.8]} 29... Ba3 {[%clk 0:01:35.4]} 30. b5 {[%clk 0:00:40.2]}
30... Na5 {[%clk 0:01:35]} 31. c4 {[%clk 0:00:37.6]} 31... Bb4 {[%clk
0:01:35.4]} 32. Kd1 {[%clk 0:00:28]} 32... Bxd2 {[%clk 0:01:29.1]} 33. Kxd2
{[%clk 0:00:29.9]} 33... Nb3+ {[%clk 0:01:30.2]} 34. Ke3 {[%clk 0:00:27.4]}
34... Nd4 {[%clk 0:01:30.9]} 35. Ng1 {[%clk 0:00:21.8]} 35... exf4+ {[%clk
0:01:29]} 36. gxf4 {[%clk 0:00:21.1]} 36... g5 {[%clk 0:01:30.1]} 37. fxg5
{[%clk 0:00:18]} 37... fxg5 {[%clk 0:01:31.2]} 38. Ne2 {[%clk 0:00:18.2]} 38...
Nxe2 {[%clk 0:01:29]} 39. Bxe2 {[%clk 0:00:20.1]} 39... h4 {[%clk 0:01:28]} 40.
Bd1 {[%clk 0:00:18.7]} 40... Ne5 {[%clk 0:01:29.3]} 41. Be2 {[%clk 0:00:19.8]}
41... Kf6 {[%clk 0:01:30.6]} 42. Kf2 {[%clk 0:00:20]} 42... Ng6 {[%clk
0:01:31.6]} 43. Ke3 {[%clk 0:00:20.7]} 43... Ke5 {[%clk 0:01:32.1]} 44. Bh5
{[%clk 0:00:21.3]} 44... Nf4 {[%clk 0:01:33.3]} 45. Bg4 {[%clk 0:00:22.9]} 45...
Ng2+ {[%clk 0:01:29.8]} 46. Kf2 {[%clk 0:00:22.4]} 46... Nf4 {[%clk 0:01:31.2]}
47. Ke3 {[%clk 0:00:23.7]} 47... Kf6 {[%clk 0:01:30.6]} 48. Bd7 {[%clk
0:00:21.4]} 48... Ng6 {[%clk 0:01:31.2]} 49. Bg4 {[%clk 0:00:22.3]} 49... Ne5
{[%clk 0:01:31.7]} 50. Be2 {[%clk 0:00:22.9]} 50... Ke7 {[%clk 0:01:33.3]} 51.
Kf2 {[%clk 0:00:23.9]} 51... Kd6 {[%clk 0:01:34.7]} 52. Ke3 {[%clk 0:00:25.5]}
52... Kc7 {[%clk 0:01:36]} 53. Kf2 {[%clk 0:00:25.4]} 53... a6 {[%clk
0:01:37.5]} 54. Ke3 {[%clk 0:00:25.3]} 54... a5 {[%clk 0:01:38.7]} 55. Kf2
{[%clk 0:00:26.3]} 55... Kd6 {[%clk 0:01:38.7]} 56. Ke3 {[%clk 0:00:27.6]} 56...
Ng6 {[%clk 0:01:36.8]} 57. Bh5 {[%clk 0:00:26.5]} 57... Nf4 {[%clk 0:01:38.2]}
58. Bg4 {[%clk 0:00:27.7]} 58... Ke5 {[%clk 0:01:39.1]} 59. Bf5 {[%clk
0:00:24.9]} 59... Nh5 {[%clk 0:01:40.3]} 60. Bg4 {[%clk 0:00:24.8]} 60... Nf6
{[%clk 0:01:41.6]} 61. Bf5 {[%clk 0:00:25.8]} 61... Ne8 {[%clk 0:01:43.1]} 62.
Bg4 {[%clk 0:00:20.8]} 62... Nd6 {[%clk 0:01:44.5]} 63. Be2 {[%clk 0:00:22.4]}
63... Nxe4 {[%clk 0:01:44.5]} 64. Bd3 {[%clk 0:00:22.3]} 64... Nf6 {[%clk
0:01:43.9]} 65. Be2 {[%clk 0:00:23]} 65... Ne4 {[%clk 0:01:43.3]} 66. Bd3 {[%clk
0:00:22.8]} 66... Nd6 {[%clk 0:01:43.8]} 67. Be2 {[%clk 0:00:23.3]} 67... Nf5+
{[%clk 0:01:44.4]} 68. Kd3 {[%clk 0:00:22.5]} 68... Kf4 {[%clk 0:01:46.3]} 69.
Bg4 {[%clk 0:00:23.5]} 69... Ne3 {[%clk 0:01:47.2]} 70. Bc8 {[%clk 0:00:24.2]}
70... g4 {[%clk 0:01:48.7]} 71. hxg4 {[%clk 0:00:23.7]} 71... Nxg4 {[%clk
0:01:50.6]} 72. Ke2 {[%clk 0:00:24.2]} 72... h3 {[%clk 0:01:48.8]} 73. Bb7
{[%clk 0:00:24.9]} 73... h2 {[%clk 0:01:48.7]} 74. Bc6 {[%clk 0:00:23.6]} 74...
Ne5 {[%clk 0:01:49.4]} 75. Bd5 {[%clk 0:00:24]} 75... Nxc4 {[%clk 0:01:50.9]}
0-1

[Event "*** Titled Tuesday Blitz AM"]
[Site "Chess.com"]
[Date "2020.01.07"]
[Round "1"]
[White "Sanan_Sjugirov"]
[Black "AwareIdea"]
[Result "1-0"]
[WhiteElo "2955"]
[BlackElo "2514"]
[TimeControl "180+2"]
[EndTime "9:10:20 PST"]
[Termination "Sanan_Sjugirov won by resignation"]

1. Nf3 {[%clk 0:03:01.7]} 1... Nf6 {[%clk 0:02:40.2]} 2. c4 {[%clk 0:03:00.8]}
2... e6 {[%clk 0:02:39.5]} 3. g3 {[%clk 0:03:00.8]} 3... d5 {[%clk 0:02:40.7]}
4. Bg2 {[%clk 0:03:02]} 4... dxc4 {[%clk 0:02:40.9]} 5. Qa4+ {[%clk 0:03:02.7]}
5... Bd7 {[%clk 0:02:41.3]} 6. Qxc4 {[%clk 0:03:03.3]} 6... c5 {[%clk
0:02:42.2]} 7. Ne5 {[%clk 0:02:59.9]} 7... Qc8 {[%clk 0:02:42.1]} 8. a4 {[%clk
0:02:56.6]} 8... Nc6 {[%clk 0:02:40.5]} 9. Nxd7 {[%clk 0:02:57.6]} 9... Qxd7
{[%clk 0:02:41.8]} 10. a5 {[%clk 0:02:57.3]} 10... Rc8 {[%clk 0:02:39.6]} 11.
O-O {[%clk 0:02:56.1]} 11... Be7 {[%clk 0:02:40.4]} 12. Nc3 {[%clk 0:02:55]}
12... O-O {[%clk 0:02:40.4]} 13. d3 {[%clk 0:02:45.2]} 13... Rfd8 {[%clk
0:02:38.3]} 14. a6 {[%clk 0:01:58.3]} 14... b6 {[%clk 0:02:34.7]} 15. Qa4 {[%clk
0:01:50.2]} 15... Nd5 {[%clk 0:02:34]} 16. Bd2 {[%clk 0:01:35.8]} 16... Bf6
{[%clk 0:02:33.4]} 17. Rfc1 {[%clk 0:01:30]} 17... Nd4 {[%clk 0:02:28]} 18. Qd1
{[%clk 0:01:07.8]} 18... Nxc3 {[%clk 0:02:17.5]} 19. bxc3 {[%clk 0:01:08]} 19...
Nc6 {[%clk 0:02:18.7]} 20. Qa4 {[%clk 0:01:02.1]} 20... Ne7 {[%clk 0:02:11.4]}
21. Bb7 {[%clk 0:00:51]} 21... Rc7 {[%clk 0:02:09.5]} 22. Bf4 {[%clk 0:00:47.9]}
22... Qxa4 {[%clk 0:02:00.8]} 23. Rxa4 {[%clk 0:00:49.8]} 23... Rcd7 {[%clk
0:02:01.4]} 24. c4 {[%clk 0:00:45.7]} 24... Ng6 {[%clk 0:01:54.8]} 25. Bd2
{[%clk 0:00:43]} 25... Be5 {[%clk 0:01:55.4]} 26. Bc6 {[%clk 0:00:38.9]} 26...
Re7 {[%clk 0:01:55.7]} 27. Rb1 {[%clk 0:00:34.5]} 27... Bc7 {[%clk 0:01:56.6]}
28. f4 {[%clk 0:00:29.3]} 28... e5 {[%clk 0:01:51.8]} 29. f5 {[%clk 0:00:29]}
29... Nf8 {[%clk 0:01:52.3]} 30. g4 {[%clk 0:00:14.3]} 30... f6 {[%clk
0:01:50.2]} 31. Be3 {[%clk 0:00:12]} 31... h6 {[%clk 0:01:46.1]} 32. Kg2 {[%clk
0:00:13.3]} 32... Nh7 {[%clk 0:01:47.1]} 33. h4 {[%clk 0:00:14.5]} 33... Nf8
{[%clk 0:01:45.9]} 34. Kf3 {[%clk 0:00:15.8]} 34... Kf7 {[%clk 0:01:44.9]} 35.
Bd5+ {[%clk 0:00:16.8]} 35... Ke8 {[%clk 0:01:45.8]} 36. Raa1 {[%clk 0:00:18]}
36... Nd7 {[%clk 0:01:38.3]} 37. Rh1 {[%clk 0:00:18.2]} 37... Nf8 {[%clk
0:01:38.8]} 38. Be4 {[%clk 0:00:19.3]} 38... Nh7 {[%clk 0:01:37.3]} 39. Rag1
{[%clk 0:00:19.5]} 39... Kd7 {[%clk 0:01:37.6]} 40. g5 {[%clk 0:00:18.3]} 40...
hxg5 {[%clk 0:01:36]} 41. hxg5 {[%clk 0:00:20.2]} 41... Nxg5+ {[%clk 0:01:37]}
42. Bxg5 {[%clk 0:00:22.1]} 42... fxg5 {[%clk 0:01:38.9]} 43. Rxg5 {[%clk
0:00:24]} 43... Rf8 {[%clk 0:01:30.1]} 44. Rh7 {[%clk 0:00:21.3]} 44... Rg8
{[%clk 0:01:14.5]} 45. Kg4 {[%clk 0:00:18.8]} 45... Bd8 {[%clk 0:01:13.9]} 46.
Bd5 {[%clk 0:00:17.5]} 46... Rf8 {[%clk 0:01:05.2]} 47. Rgxg7 {[%clk 0:00:17.8]}
47... Rf6 {[%clk 0:01:01.9]} 48. Rxe7+ {[%clk 0:00:15.2]} 48... Bxe7 {[%clk
0:01:03.8]} 49. Be4 {[%clk 0:00:10.4]} 49... Rf8 {[%clk 0:01:03.5]} 50. Bd5
{[%clk 0:00:10.2]} 50... Rf6 {[%clk 0:01:04.5]} 51. Rh1 {[%clk 0:00:11.1]} 51...
Rf8 {[%clk 0:01:03.6]} 52. Be6+ {[%clk 0:00:12.4]} 52... Kd6 {[%clk 0:01:02.6]}
53. Rh7 {[%clk 0:00:12.8]} 53... Rf6 {[%clk 0:01:03.3]} 54. Kf3 {[%clk
0:00:13.6]} 54... Rf8 {[%clk 0:01:04.3]} 55. Ke4 {[%clk 0:00:15]} 55... Rf6
{[%clk 0:01:05.5]} 56. e3 {[%clk 0:00:14]} 56... Rf8 {[%clk 0:01:06.1]} 57. Bf7
{[%clk 0:00:14.5]} 57... Bf6 {[%clk 0:01:01]} 58. Bg6 {[%clk 0:00:13]} 58... Be7
{[%clk 0:01:02.1]} 59. Rh1 {[%clk 0:00:13.4]} 59... Rf6 {[%clk 0:01:02.9]} 60.
Rh6 {[%clk 0:00:10.8]} 60... Bf8 {[%clk 0:01:00.7]} 61. Rh8 {[%clk 0:00:10.8]}
61... Ke7 {[%clk 0:00:40]} 62. Rh7+ {[%clk 0:00:11.3]} 1-0

[Event "*** Titled Tuesday Blitz AM"]
[Site "Chess.com"]
[Date "2020.01.07"]
[Round "1"]
[White "Megagigahiper3345"]
[Black "Yaacovn"]
[Result "0-1"]
[WhiteElo "2453"]
[BlackElo "2835"]
[TimeControl "180+2"]
[EndTime "9:10:21 PST"]
[Termination "Yaacovn won by resignation"]

1. d4 {[%clk 0:03:01.9]} 1... Nf6 {[%clk 0:03:00]} 2. c4 {[%clk 0:03:00.1]} 2...
e5 {[%clk 0:03:00.2]} 3. dxe5 {[%clk 0:02:57.6]} 3... Ne4 {[%clk 0:03:00.9]} 4.
Nd2 {[%clk 0:02:56.9]} 4... Bb4 {[%clk 0:03:00.9]} 5. a3 {[%clk 0:02:52.2]} 5...
Nxd2 {[%clk 0:03:00.8]} 6. Bxd2 {[%clk 0:02:53]} 6... Bxd2+ {[%clk 0:03:01.9]}
7. Qxd2 {[%clk 0:02:46.6]} 7... O-O {[%clk 0:03:03.3]} 8. Nf3 {[%clk 0:02:46.1]}
8... Nc6 {[%clk 0:03:02.7]} 9. e3 {[%clk 0:02:44.6]} 9... Qe7 {[%clk 0:03:02.4]}
10. Qd5 {[%clk 0:02:32.7]} 10... Re8 {[%clk 0:03:00.8]} 11. Be2 {[%clk
0:02:30.2]} 11... Nxe5 {[%clk 0:02:43.8]} 12. Qxe5 {[%clk 0:02:30.9]} 12... Qxe5
{[%clk 0:02:45]} 13. Nxe5 {[%clk 0:02:32.8]} 13... Rxe5 {[%clk 0:02:45.2]} 14.
Bf3 {[%clk 0:02:32.8]} 14... d6 {[%clk 0:02:46.3]} 15. Kd2 {[%clk 0:02:27.2]}
15... Rb8 {[%clk 0:02:46.6]} 16. Kc3 {[%clk 0:02:28.3]} 16... b5 {[%clk
0:02:43]} 17. b3 {[%clk 0:01:48.3]} 17... Be6 {[%clk 0:02:23.2]} 18. Rhd1 {[%clk
0:01:37.6]} 18... Kf8 {[%clk 0:01:37.7]} 19. Bd5 {[%clk 0:01:30.6]} 19... Ke7
{[%clk 0:01:26.5]} 20. Bxe6 {[%clk 0:01:19.7]} 20... fxe6 {[%clk 0:01:24.9]} 21.
b4 {[%clk 0:01:12.4]} 21... a5 {[%clk 0:01:18]} 22. Rd4 {[%clk 0:01:00.8]} 22...
c5 {[%clk 0:01:14.4]} 23. Rg4 {[%clk 0:00:52.7]} 23... axb4+ {[%clk 0:01:14.4]}
24. axb4 {[%clk 0:00:54.6]} 24... cxb4+ {[%clk 0:01:15.5]} 25. Kxb4 {[%clk
0:00:56.5]} 25... Kf6 {[%clk 0:01:10.6]} 26. Ra7 {[%clk 0:00:50.9]} 26... bxc4+
{[%clk 0:01:04.4]} 27. Kxc4 {[%clk 0:00:52.8]} 27... Rc5+ {[%clk 0:01:05.1]} 28.
Kd3 {[%clk 0:00:54.4]} 28... Rb3+ {[%clk 0:01:04]} 29. Ke2 {[%clk 0:00:36.6]}
29... g5 {[%clk 0:01:02.4]} 30. Rxh7 {[%clk 0:00:19.1]} 30... Rc2+ {[%clk
0:01:02.8]} 31. Kf3 {[%clk 0:00:20.7]} 31... Rbb2 {[%clk 0:01:02.7]} 32. Kg3
{[%clk 0:00:22.2]} 32... Rxf2 {[%clk 0:01:00.1]} 33. Kh3 {[%clk 0:00:23.7]}
33... Rfe2 {[%clk 0:00:46.4]} 34. Rg3 {[%clk 0:00:21.2]} 34... Rb4 {[%clk
0:00:30.1]} 35. Rh6+ {[%clk 0:00:20.5]} 35... Kf5 {[%clk 0:00:26]} 36. Rh5
{[%clk 0:00:21.6]} 36... e5 {[%clk 0:00:19.1]} 37. Rhxg5+ {[%clk 0:00:21.6]}
37... Ke6 {[%clk 0:00:20]} 38. Rg6+ {[%clk 0:00:21.9]} 38... Kd5 {[%clk
0:00:20.8]} 39. e4+ {[%clk 0:00:22.2]} 39... Rbxe4 {[%clk 0:00:20.6]} 40. Rd3+
{[%clk 0:00:17.3]} 40... Rd4 {[%clk 0:00:21.8]} 41. Ra3 {[%clk 0:00:18.9]} 41...
Rc4 {[%clk 0:00:21.4]} 42. Rd3+ {[%clk 0:00:18]} 42... Rd4 {[%clk 0:00:22.2]}
43. Ra3 {[%clk 0:00:19.7]} 43... Red2 {[%clk 0:00:23.6]} 44. Rgg3 {[%clk
0:00:19.5]} 44... e4 {[%clk 0:00:24.4]} 45. Rg5+ {[%clk 0:00:20]} 45... Ke6
{[%clk 0:00:24.7]} 46. Ra8 {[%clk 0:00:20.4]} 46... Kf6 {[%clk 0:00:24.1]} 47.
Rgg8 {[%clk 0:00:20.3]} 47... Rd5 {[%clk 0:00:19.4]} 48. Rgf8+ {[%clk
0:00:12.3]} 48... Ke5 {[%clk 0:00:19.8]} 49. g4 {[%clk 0:00:12]} 49... Kd4
{[%clk 0:00:16.6]} 50. Rf5 {[%clk 0:00:10.4]} 50... Rxf5 {[%clk 0:00:17.1]} 51.
gxf5 {[%clk 0:00:12.3]} 51... Ke5 {[%clk 0:00:18.1]} 52. Kg4 {[%clk 0:00:08]}
52... Rxh2 {[%clk 0:00:18.2]} 53. Re8+ {[%clk 0:00:08]} 53... Kd4 {[%clk
0:00:18.9]} 54. f6 {[%clk 0:00:09.2]} 54... Rf2 {[%clk 0:00:19.9]} 55. Kg5
{[%clk 0:00:10.5]} 55... e3 {[%clk 0:00:20]} 56. Re6 {[%clk 0:00:11.8]} 56... d5
{[%clk 0:00:20.9]} 57. Kg6 {[%clk 0:00:12]} 57... Kd3 {[%clk 0:00:20]} 58. f7
{[%clk 0:00:13.4]} 58... d4 {[%clk 0:00:20.4]} 59. Rf6 {[%clk 0:00:14.1]} 59...
Rxf6+ {[%clk 0:00:21.3]} 60. Kxf6 {[%clk 0:00:16]} 60... e2 {[%clk 0:00:22.9]}
61. f8=Q {[%clk 0:00:17.7]} 61... e1=Q {[%clk 0:00:24.8]} 62. Qa3+ {[%clk
0:00:18.7]} 62... Qc3 {[%clk 0:00:25.5]} 63. Qa6+ {[%clk 0:00:19]} 63... Kd2
{[%clk 0:00:26.8]} 64. Kf5 {[%clk 0:00:18.4]} 64... Qd3+ {[%clk 0:00:27.4]} 65.
Qxd3+ {[%clk 0:00:18.8]} 65... Kxd3 {[%clk 0:00:29.3]} 66. Kf4 {[%clk
0:00:20.5]} 66... Kc2 {[%clk 0:00:30.3]} 67. Kf3 {[%clk 0:00:22.4]} 67... d3
{[%clk 0:00:32]} 0-1

[Event "*** Titled Tuesday Blitz AM"]
[Site "Chess.com"]
[Date "2020.01.07"]
[Round "1"]
[White "goldenspine"]
[Black "mazetofonias"]
[Result "1-0"]
[WhiteElo "2335"]
[BlackElo "2686"]
[TimeControl "180+2"]
[EndTime "9:10:25 PST"]
[Termination "goldenspine won by resignation"]

1. d4 {[%clk 0:03:01.9]} 1... Nf6 {[%clk 0:02:58.8]} 2. Nf3 {[%clk 0:03:03.3]}
2... e6 {[%clk 0:02:58.9]} 3. g3 {[%clk 0:03:03.9]} 3... c5 {[%clk 0:02:58.8]}
4. Bg2 {[%clk 0:02:59.3]} 4... cxd4 {[%clk 0:02:57.6]} 5. Nxd4 {[%clk
0:03:01.2]} 5... d5 {[%clk 0:02:59]} 6. O-O {[%clk 0:03:01.3]} 6... e5 {[%clk
0:02:57.6]} 7. Nb3 {[%clk 0:02:57.3]} 7... Nc6 {[%clk 0:02:58.9]} 8. Nc3 {[%clk
0:02:50.6]} 8... Be6 {[%clk 0:02:58.4]} 9. Bg5 {[%clk 0:02:50]} 9... d4 {[%clk
0:02:41]} 10. Bxf6 {[%clk 0:02:37.9]} 10... gxf6 {[%clk 0:02:36.3]} 11. Ne4
{[%clk 0:02:35.4]} 11... Be7 {[%clk 0:02:36.5]} 12. c3 {[%clk 0:02:28.5]} 12...
f5 {[%clk 0:02:12.2]} 13. Nec5 {[%clk 0:02:25]} 13... Bxb3 {[%clk 0:01:20.9]}
14. Qxb3 {[%clk 0:02:19.7]} 14... Bxc5 {[%clk 0:01:20.7]} 15. Qxb7 {[%clk
0:02:20.4]} 15... O-O {[%clk 0:01:21.2]} 16. Qxc6 {[%clk 0:02:00.3]} 16... Rc8
{[%clk 0:01:20.8]} 17. Qh6 {[%clk 0:01:48]} 17... dxc3 {[%clk 0:01:20.6]} 18.
bxc3 {[%clk 0:01:46.6]} 18... Qe7 {[%clk 0:01:13]} 19. Bh3 {[%clk 0:01:46]}
19... Qe6 {[%clk 0:01:12.8]} 20. Qg5+ {[%clk 0:01:36.6]} 20... Qg6 {[%clk
0:01:13.7]} 21. Qxf5 {[%clk 0:01:38.2]} 21... Qxf5 {[%clk 0:01:09.7]} 22. Bxf5
{[%clk 0:01:40.1]} 22... Rc7 {[%clk 0:01:11.1]} 23. Rab1 {[%clk 0:01:32.9]}
23... Bb6 {[%clk 0:01:11.8]} 24. Rb3 {[%clk 0:01:33.7]} 24... Rd8 {[%clk
0:01:13.3]} 25. Bd3 {[%clk 0:01:33.6]} 25... Kg7 {[%clk 0:01:13.6]} 26. Kg2
{[%clk 0:01:33]} 26... Rdc8 {[%clk 0:00:57.3]} 27. c4 {[%clk 0:01:33.8]} 27...
e4 {[%clk 0:00:56.5]} 28. Bxe4 {[%clk 0:01:34.9]} 28... Rxc4 {[%clk 0:00:58]}
29. Bd3 {[%clk 0:01:31.1]} 29... R4c5 {[%clk 0:00:58.6]} 30. Rd1 {[%clk
0:01:30.9]} 30... Rc1 {[%clk 0:00:56.9]} 31. Rxc1 {[%clk 0:01:24.2]} 31... Rxc1
{[%clk 0:00:58.8]} 32. Rb5 {[%clk 0:01:24.9]} 32... h6 {[%clk 0:00:57.7]} 33.
Rf5 {[%clk 0:01:25.8]} 33... Ra1 {[%clk 0:00:57.3]} 34. Bc4 {[%clk 0:01:26.5]}
34... f6 {[%clk 0:00:58.8]} 35. Bb3 {[%clk 0:01:26.5]} 35... Rc1 {[%clk
0:00:59.6]} 36. e3 {[%clk 0:01:27.3]} 36... Re1 {[%clk 0:00:57]} 37. h4 {[%clk
0:01:27.6]} 37... Re2 {[%clk 0:00:58.2]} 38. Kf3 {[%clk 0:01:28.9]} 38... Rb2
{[%clk 0:00:57.7]} 39. Rd5 {[%clk 0:01:29.7]} 39... Kf8 {[%clk 0:00:55.4]} 40.
Rd7 {[%clk 0:01:30]} 40... Ke8 {[%clk 0:00:49.3]} 41. Rh7 {[%clk 0:01:30.9]}
41... Ba5 {[%clk 0:00:49.7]} 42. Rxh6 {[%clk 0:01:07.6]} 42... Be1 {[%clk
0:00:46.9]} 43. Rh8+ {[%clk 0:01:08.4]} 43... Ke7 {[%clk 0:00:46.2]} 44. Rh7+
{[%clk 0:01:09.9]} 44... Kd6 {[%clk 0:00:47.4]} 45. Rxa7 {[%clk 0:01:10.6]}
45... f5 {[%clk 0:00:45.3]} 46. Ra6+ {[%clk 0:01:07]} 46... Kc5 {[%clk
0:00:41.9]} 47. e4 {[%clk 0:00:58.3]} 47... Rxf2+ {[%clk 0:00:41.2]} 48. Ke3
{[%clk 0:00:59.3]} 48... fxe4 {[%clk 0:00:40]} 49. Rc6+ {[%clk 0:00:59]} 49...
Kb5 {[%clk 0:00:39.4]} 50. Rc1 {[%clk 0:00:57.2]} 50... Bd2+ {[%clk 0:00:23.6]}
51. Kxf2 {[%clk 0:00:57.8]} 51... Bxc1 {[%clk 0:00:25.5]} 52. g4 {[%clk
0:00:57.2]} 52... Kc5 {[%clk 0:00:25.4]} 53. Ke2 {[%clk 0:00:54.9]} 53... Kd4
{[%clk 0:00:26.5]} 54. Bc2 {[%clk 0:00:54.2]} 54... Ke5 {[%clk 0:00:27.4]} 55.
Kd1 {[%clk 0:00:48.7]} 55... Ba3 {[%clk 0:00:28.1]} 56. Bb3 {[%clk 0:00:47.8]}
56... Be7 {[%clk 0:00:26.6]} 57. h5 {[%clk 0:00:47.8]} 57... Kf4 {[%clk
0:00:27.4]} 58. Be6 {[%clk 0:00:48.3]} 58... Ba3 {[%clk 0:00:27.2]} 59. h6
{[%clk 0:00:49.1]} 59... Kg5 {[%clk 0:00:25.9]} 60. h7 {[%clk 0:00:49.2]} 60...
Bb2 {[%clk 0:00:27.5]} 61. Bf5 {[%clk 0:00:49.1]} 61... Kh6 {[%clk 0:00:26.4]}
62. Bxe4 {[%clk 0:00:47.9]} 62... Kg7 {[%clk 0:00:27.1]} 63. Bf5 {[%clk
0:00:49.8]} 63... Ba3 {[%clk 0:00:27.8]} 64. Kc2 {[%clk 0:00:50.6]} 64... Bd6
{[%clk 0:00:28.6]} 65. Kb3 {[%clk 0:00:52.5]} 65... Kh8 {[%clk 0:00:29.7]} 66.
a4 {[%clk 0:00:53.7]} 66... Be5 {[%clk 0:00:31.2]} 67. Kc4 {[%clk 0:00:55]}
67... Bc7 {[%clk 0:00:31.7]} 68. Kd5 {[%clk 0:00:55.8]} 68... Kg7 {[%clk
0:00:33]} 69. Kc6 {[%clk 0:00:56.6]} 69... Ba5 {[%clk 0:00:34.2]} 70. Kd7 {[%clk
0:00:57.7]} 70... Be1 {[%clk 0:00:35]} 71. Ke6 {[%clk 0:00:57.8]} 71... Bd2
{[%clk 0:00:35.8]} 72. Kd5 {[%clk 0:00:55.8]} 72... Kh8 {[%clk 0:00:36.9]} 73.
Bd3 {[%clk 0:00:55.3]} 73... Be1 {[%clk 0:00:38]} 74. g5 {[%clk 0:00:56]} 74...
Bd2 {[%clk 0:00:38.9]} 75. g6 {[%clk 0:00:57.1]} 75... Kg7 {[%clk 0:00:40.2]}
76. Ke6 {[%clk 0:00:58.3]} 76... Bc3 {[%clk 0:00:40.9]} 77. h8=Q+ {[%clk
0:00:56.3]} 77... Kxh8 {[%clk 0:00:41.9]} 78. Kf7 {[%clk 0:00:57.5]} 78... Bg7
{[%clk 0:00:40]} 79. a5 {[%clk 0:00:58.4]} 79... Be5 {[%clk 0:00:40.8]} 80. a6
{[%clk 0:00:59.8]} 80... Bd4 {[%clk 0:00:41.7]} 81. a7 {[%clk 0:01:00.6]} 1-0